bitfinex-derivatives/quotes_BTCF0:USTF0_20250713
["timestamp","ask_amount","ask_price","bid_price","bid_amount"]
[1752377370753,0.86795968,117840.0,117830.0,1.0225229]
[1752377370953,1.08243854,117840.0,117830.0,1.23700176]
[1752377372455,0.86795968,117840.0,117830.0,1.23700176]
[1752377378458,0.86795968,117840.0,117830.0,0.51540176]
[1752377378658,0.86795968,117840.0,117830.0,0.87620176]
[1752377379253,1.08243854,117840.0,117830.0,0.87620176]
[1752377382358,0.86795968,117840.0,117830.0,0.87620176]
[1752377382662,1.08243854,117840.0,117830.0,0.87620176]
[1752377385862,1.14355332,117840.0,117830.0,0.87620176]
[1752377386062,0.86795968,117840.0,117830.0,0.87620176]
[1752377386365,1.2969174,117840.0,117830.0,0.87620176]
[1752377386560,1.08243854,117840.0,117830.0,0.87620176]
[1752377388466,0.86795968,117840.0,117830.0,0.87620176]
[1752377388666,1.08243854,117840.0,117830.0,0.87620176]
[1752377391170,1.14355332,117840.0,117830.0,0.87620176]
[1752377393767,0.92907446,117840.0,117830.0,0.87620176]
[1752377393972,1.14355332,117840.0,117830.0,0.87620176]
[1752377394169,1.08243854,117840.0,117830.0,0.87620176]
[1752377398279,0.86795968,117840.0,117830.0,0.87620176]
[1752377398479,1.08243854,117840.0,117830.0,0.87620176]
[1752377399378,0.86795968,117840.0,117830.0,0.87620176]
[1752377399677,1.08243854,117840.0,117830.0,0.87620176]
[1752377399880,1.08244098,117840.0,117830.0,0.87620176]
[1752377400380,0.29116212,117840.0,117830.0,1.09068062]
[1752377400582,0.86776212,117840.0,117830.0,1.09068062]
[1752377401981,0.86776212,117840.0,117830.0,0.87620176]
[1752377402182,0.29116212,117840.0,117830.0,0.87620176]
[1752377403083,0.29116212,117840.0,117830.0,1.09068062]
[1752377404785,0.29116212,117840.0,117830.0,0.87620176]
[1752377412484,0.29116212,117840.0,117830.0,0.6617229]
[1752377412688,0.29116212,117840.0,117830.0,0.87620176]
[1752377414391,0.29116212,117840.0,117830.0,0.51540176]
[1752377414591,0.29116212,117840.0,117830.0,0.87620176]
[1752377416594,0.29116212,117840.0,117830.0,0.6617229]
[1752377416893,0.29116212,117840.0,117830.0,0.87620176]
[1752377417095,0.29116212,117840.0,117830.0,0.6617229]
[1752377417289,0.29116212,117840.0,117830.0,0.87620176]
[1752377420396,0.29116212,117840.0,117830.0,0.6617229]
[1752377420589,0.29116212,117840.0,117830.0,0.87620176]
[1752377429298,0.29116212,117840.0,117830.0,0.6617229]
[1752377429698,0.29116212,117840.0,117830.0,0.87620176]
[1752377434304,0.3522769,117840.0,117830.0,0.87620176]
[1752377436009,0.29116212,117840.0,117830.0,0.87620176]
[1752377440317,0.3522769,117840.0,117830.0,0.87620176]
[1752377442012,0.3522769,117840.0,117830.0,0.6617229]
[1752377442212,0.3522769,117840.0,117830.0,0.87620176]
[1752377443214,0.35231287,117840.0,117830.0,0.87620176]
[1752377444213,0.29119809,117840.0,117830.0,0.87620176]
[1752377445813,0.29119809,117840.0,117830.0,0.6617229]
[1752377446114,0.29119809,117840.0,117830.0,0.87620176]
[1752377474236,0.35231287,117840.0,117830.0,0.87620176]
[1752377478242,0.35231287,117840.0,117830.0,0.51540176]
[1752377478446,0.35231287,117840.0,117830.0,0.87620176]
[1752377479942,0.56679173,117840.0,117830.0,0.87620176]
[1752377481943,0.50567695,117840.0,117830.0,0.87620176]
[1752377492659,0.29119809,117840.0,117830.0,0.87620176]
[1752377492858,0.50567695,117840.0,117830.0,0.87620176]
[1752377493854,0.29119809,117840.0,117830.0,0.87620176]
[1752377494059,0.50567695,117840.0,117830.0,0.87620176]
[1752377495463,0.50567695,117840.0,117830.0,0.51540176]
[1752377495664,0.50567695,117840.0,117830.0,0.87620176]
[1752377497864,0.50567695,117840.0,117830.0,0.6617229]
[1752377498065,0.50567695,117840.0,117830.0,0.87620176]
[1752377500866,0.29119809,117840.0,117830.0,0.87620176]
[1752377501066,0.50567695,117840.0,117830.0,0.87620176]
[1752377505866,0.50567695,117840.0,117830.0,0.51540176]
[1752377506072,0.50567695,117840.0,117830.0,0.87620176]
[1752377506973,0.50567695,117840.0,117830.0,0.6617229]
[1752377507175,0.50567695,117840.0,117830.0,0.87620176]
[1752377510175,0.29119809,117840.0,117830.0,0.87620176]
[1752377510475,0.50567695,117840.0,117830.0,0.87620176]
[1752377511073,0.29119809,117840.0,117830.0,0.87620176]
[1752377514181,0.29119809,117840.0,117830.0,1.09068062]
[1752377514376,0.29119809,117840.0,117830.0,0.87620176]
[1752377514676,0.12153399,117840.0,117830.0,1.09068062]
[1752377515379,0.29119809,117840.0,117830.0,1.09068062]
[1752377516378,0.01839399,117840.0,117830.0,1.09068062]
[1752377516974,9e-08,117840.0,117830.0,1.30515948]
[1752377517380,9e-08,117840.0,117830.0,1.80515948]
[1752377517680,9e-08,117840.0,117830.0,1.80715948]
[1752377517879,9e-08,117840.0,117830.0,1.80515948]
[1752377518079,9e-08,117840.0,117830.0,1.80815948]
[1752377518782,9e-08,117840.0,117830.0,1.97788748]
[1752377520683,9e-08,117840.0,117830.0,1.80815948]
[1752377521884,0.002,117850.0,117840.0,0.1696641]
[1752377522084,0.002,117850.0,117840.0,2.33018068]
[1752377522989,0.002,117850.0,117840.0,2.33218068]
[1752377526891,0.14837354,117870.0,117860.0,0.1696353]
[1752377527092,0.14837354,117870.0,117860.0,2.47591302]
[1752377528391,0.14837354,117870.0,117860.0,2.48427247]
[1752377528994,0.16637935,117870.0,117860.0,2.48427247]
[1752377529995,0.16637656,117870.0,117860.0,2.48427247]
[1752377531593,0.33599746,117870.0,117860.0,2.48427247]
[1752377545612,0.33599746,117870.0,117860.0,2.12347247]
[1752377545814,0.33619746,117870.0,117860.0,2.12347247]
[1752377549814,0.33619746,117870.0,117860.0,1.69451475]
[1752377550016,0.33619746,117870.0,117860.0,2.12347247]
[1752377571028,0.55067632,117870.0,117860.0,0.39247361]
[1752377573036,1.12747632,117870.0,117860.0,0.39247361]
[1752377575735,0.97411224,117870.0,117860.0,0.39247361]
[1752377575939,1.1885911,117870.0,117860.0,0.39247361]
[1752377577039,1.1885911,117870.0,117860.0,0.17799475]
[1752377577237,1.1885911,117870.0,117860.0,0.39247361]
[1752377579234,1.18856262,117870.0,117860.0,0.39247361]
[1752377579941,0.97408376,117870.0,117860.0,0.60695247]
[1752377581138,0.97408376,117870.0,117860.0,0.96775247]
[1752377581442,0.91296898,117870.0,117860.0,0.96775247]
[1752377581842,0.97408376,117870.0,117860.0,0.96775247]
[1752377584248,0.33616898,117870.0,117860.0,0.96775247]
[1752377584445,0.91304898,117870.0,117860.0,0.96775247]
[1752377588249,0.33616898,117870.0,117860.0,0.96775247]
[1752377590848,0.13651808,117870.0,117860.0,0.96775247]
[1752377591549,0.16803808,117870.0,117860.0,0.96775247]
[1752377592054,0.33765898,117870.0,117860.0,0.96775247]
[1752377597157,0.33765898,117870.0,117860.0,0.53879475]
[1752377597359,0.33765898,117870.0,117860.0,0.96775247]
[1752377606470,0.33765898,117870.0,117860.0,0.60695247]
[1752377606670,0.33765898,117870.0,117860.0,0.96775247]
[1752377612268,0.33766921,117870.0,117860.0,0.96775247]
[1752377614268,0.39878399,117870.0,117860.0,0.96775247]
[1752377616570,0.39878399,117870.0,117860.0,0.53879475]
[1752377616772,0.39878399,117870.0,117860.0,0.96775247]
[1752377618977,0.33766921,117870.0,117860.0,0.96775247]
[1752377624083,0.16804831,117870.0,117860.0,0.96775247]
[1752377626983,0.16804831,117870.0,117860.0,0.53879475]
[1752377627184,0.16804831,117870.0,117860.0,0.96775247]
[1752377635288,0.33766921,117870.0,117860.0,0.96775247]
[1752377636286,0.16804831,117870.0,117860.0,0.96775247]
[1752377651005,0.16804831,117870.0,117860.0,0.53879475]
[1752377651200,0.16804831,117870.0,117860.0,0.96775247]
[1752377652109,0.15006354,117870.0,117860.0,0.96775247]
[1752377652309,0.16804995,117870.0,117860.0,0.96775247]
[1752377652906,0.06738995,117870.0,117860.0,1.18223133]
[1752377653112,0.06738995,117870.0,117860.0,0.96775247]
[1752377656213,0.06738995,117870.0,117860.0,0.53879475]
[1752377656714,0.13764995,117870.0,117860.0,0.96775247]
[1752377661313,0.06738995,117870.0,117860.0,0.96775247]
[1752377666606,0.09012995,117870.0,117860.0,0.96775247]
[1752377667118,0.13764995,117870.0,117860.0,0.96775247]
[1752377667415,0.13764995,117870.0,117860.0,0.53879475]
[1752377667716,0.13764995,117870.0,117860.0,0.96775247]
[1752377668215,0.13764995,117870.0,117860.0,1.32855247]
[1752377680226,0.13763366,117870.0,117860.0,1.32855247]
[1752377683425,0.13763366,117870.0,117860.0,0.89959475]
[1752377683618,0.13763366,117870.0,117860.0,1.32855247]
[1752377684525,0.16793366,117870.0,117860.0,1.32855247]
[1752377684825,0.55203342,117870.0,117860.0,1.11407361]
[1752377685024,0.55203342,117870.0,117860.0,1.32855247]
[1752377685226,0.33755456,117870.0,117860.0,1.32855247]
[1752377685922,0.16793366,117870.0,117860.0,1.32855247]
[1752377693933,0.13763366,117870.0,117860.0,1.32855247]
[1752377694232,0.13763366,117870.0,117860.0,1.54303133]
[1752377694735,0.13763366,117870.0,117860.0,1.32855247]
[1752377695033,0.13763366,117870.0,117860.0,1.54303133]
[1752377696427,0.13763366,117870.0,117860.0,1.32855247]
[1752377700539,0.11966354,117870.0,117860.0,1.32855247]
[1752377701636,0.13762328,117870.0,117860.0,1.32855247]
[1752377702239,0.11966354,117870.0,117860.0,1.32855247]
[1752377703636,0.13762327,117870.0,117860.0,1.32855247]
[1752377704039,0.11966354,117870.0,117860.0,1.32855247]
[1752377704238,0.13762327,117870.0,117860.0,1.32855247]
[1752377706039,0.13762327,117870.0,117860.0,0.89959475]
[1752377706240,0.13762327,117870.0,117860.0,1.32855247]
[1752377707042,0.16792327,117870.0,117860.0,1.32855247]
[1752377708741,0.16792327,117870.0,117860.0,0.60695247]
[1752377720853,0.16792327,117870.0,117860.0,0.60795247]
[1752377721555,0.16792327,117870.0,117860.0,0.60895247]
[1752377725156,0.13762327,117870.0,117860.0,0.60895247]
[1752377726660,0.13762327,117870.0,117860.0,0.60995247]
[1752377728565,0.13762327,117870.0,117860.0,0.60895247]
[1752377728759,0.13762327,117870.0,117860.0,0.61095247]
[1752377742177,0.16941327,117870.0,117860.0,0.61095247]
[1752377754786,0.16941483,117870.0,117860.0,0.61095247]
[1752377782297,0.16941483,117870.0,117860.0,0.84293163]
[1752377782607,3e-08,117870.0,117860.0,0.84293163]
[1752377798317,0.15362243,117880.0,117870.0,0.1696209]
[1752377798616,0.17137865,117880.0,117870.0,1.75297862]
[1752377799418,0.17137865,117880.0,117870.0,1.75397862]
[1752377799714,0.17157865,117880.0,117870.0,1.75397862]
[1752377801220,0.17157865,117880.0,117870.0,1.75497862]
[1752377810534,0.13848865,117880.0,117870.0,1.75497862]
[1752377812436,0.1385115,117880.0,117870.0,1.75497862]
[1752377815442,0.1385115,117880.0,117870.0,1.3260209]
[1752377815642,0.1385115,117880.0,117870.0,1.75497862]
[1752377822841,0.04128907,117880.0,117870.0,1.75497862]
[1752377823048,0.01797907,117880.0,117870.0,1.77513862]
[1752377823647,0.04053907,117880.0,117870.0,2.27513862]
[1752377824243,0.01797907,117880.0,117870.0,2.27513862]
[1752377824749,0.04053907,117880.0,117870.0,2.27513862]
[1752377828049,0.09014907,117880.0,117870.0,2.27513862]
[1752377829950,0.09014907,117880.0,117870.0,1.8461809]
[1752377830251,0.09014907,117880.0,117870.0,2.27513862]
[1752377833554,0.09014907,117880.0,117870.0,1.8461809]
[1752377833753,0.09014907,117880.0,117870.0,2.27513862]
[1752377834753,0.12072907,117880.0,117870.0,2.27513862]
[1752377834962,0.1207153,117880.0,117870.0,2.04049976]
[1752377835256,0.1207153,117880.0,117870.0,2.25497862]
[1752377835458,0.1207153,117880.0,117870.0,2.27513862]
[1752377835950,0.1207153,117880.0,117870.0,1.77513862]
[1752377840657,0.10295,117880.0,117870.0,1.77513862]
[1752377840863,0.12072187,117880.0,117870.0,1.77513862]
[1752377847167,0.12072187,117880.0,117870.0,2.49673862]
[1752377855165,0.12072187,117880.0,117870.0,2.54232567]
[1752377868374,0.10295,117880.0,117870.0,2.54232567]
[1752377868580,0.10295,117880.0,117870.0,2.49673862]
[1752377870081,0.12066777,117880.0,117870.0,2.5423447]
[1752377874879,0.09008777,117880.0,117870.0,2.5423447]
[1752377880793,0.09009423,117880.0,117870.0,2.5423447]
[1752377884495,0.09009423,117880.0,117870.0,2.49673862]
[1752377885497,0.09009423,117880.0,117870.0,2.0476209]
[1752377885498,0.12048423,117880.0,117870.0,2.0476209]
[1752377885797,0.96904845,117880.0,117870.0,0.8932209]
[1752377886005,0.2716953,117860.0,117850.0,0.361]
[1752377886194,1.29561725,117860.0,117850.0,0.5304497]
[1752377886393,1.54561725,117860.0,117850.0,0.5304497]
[1752377886593,1.33169839,117860.0,117850.0,0.5304497]
[1752377886793,1.33169839,117860.0,117850.0,0.74492856]
[1752377887000,1.33189839,117860.0,117850.0,0.74492856]
[1752377887403,1.33189839,117860.0,117850.0,0.74792856]
[1752377887592,0.9238024,117860.0,117850.0,0.74792856]
[1752377887799,1.5016824,117860.0,117850.0,0.74792856]
[1752377887998,0.9238024,117860.0,117850.0,0.74792856]
[1752377888199,0.11998423,117860.0,117850.0,0.77892856]
[1752377889205,0.11998423,117860.0,117850.0,0.78760403]
[1752377889404,0.33446309,117860.0,117850.0,0.78760403]
[1752377889604,0.11998423,117860.0,117850.0,0.80776403]
[1752377890206,0.11998423,117860.0,117850.0,0.80976403]
[1752377893008,0.28961953,117860.0,117850.0,0.80976403]
[1752377893708,0.28997069,117860.0,117850.0,0.80976403]
[1752377896206,0.28997069,117860.0,117850.0,0.81176403]
[1752377898511,0.28997069,117860.0,117850.0,0.59728517]
[1752377898705,0.28997069,117860.0,117850.0,0.81176403]
[1752377900413,0.12033539,117860.0,117850.0,0.81176403]
[1752377900706,0.12032341,117860.0,117850.0,0.81176403]
[1752377902010,0.28995871,117860.0,117850.0,1.02624289]
[1752377902204,0.28995871,117860.0,117850.0,0.81176403]
[1752377902400,0.12032341,117860.0,117850.0,0.81176403]
[1752377902805,0.28995871,117860.0,117850.0,0.81176403]
[1752377904712,0.28995871,117860.0,117850.0,0.80976403]
[1752377907712,0.2901903,117860.0,117850.0,0.80976403]
[1752377912617,0.120555,117860.0,117850.0,0.80976403]
[1752377914618,0.120555,117860.0,117850.0,0.86260008]
[1752377915122,0.2901903,117860.0,117850.0,0.86260008]
[1752377916624,0.2901903,117860.0,117850.0,0.59528517]
[1752377916925,0.2901903,117860.0,117850.0,0.86260008]
[1752377921530,0.2901903,117860.0,117850.0,0.59528517]
[1752377921828,0.2901903,117860.0,117850.0,0.86260008]
[1752377923223,0.120555,117860.0,117850.0,0.86260008]
[1752377924230,0.2901903,117860.0,117850.0,0.86260008]
[1752377932935,0.120555,117860.0,117850.0,0.86460008]
[1752377937137,0.120555,117860.0,117850.0,1.44228008]
[1752377939243,0.120555,117860.0,117850.0,1.17496517]
[1752377939437,0.120555,117860.0,117850.0,1.44228008]
[1752377957554,0.120555,117860.0,117850.0,1.17496517]
[1752377957754,0.120555,117860.0,117850.0,1.44228008]
[1752377965260,0.120555,117860.0,117850.0,1.80308008]
[1752377966147,0.2901903,117860.0,117850.0,1.80308008]
[1752377967658,0.2901903,117860.0,117850.0,1.53576517]
[1752377967852,0.2901903,117860.0,117850.0,1.80308008]
[1752377968961,0.2718953,117860.0,117850.0,1.80308008]
[1752377969163,0.29025983,117860.0,117850.0,1.80308008]
[1752377979073,0.2718953,117860.0,117850.0,1.80308008]
[1752377979274,0.2902596,117860.0,117850.0,1.80308008]
[1752377987382,0.2902596,117860.0,117850.0,1.53576517]
[1752377987583,0.2902596,117860.0,117850.0,1.80308008]
[1752377989085,0.55757451,117860.0,117850.0,1.78092008]
[1752377989384,0.55757451,117860.0,117850.0,0.93592517]
[1752377989584,0.55757451,117860.0,117850.0,1.20324008]
[1752377990380,0.55757451,117860.0,117850.0,0.93592517]
[1752377990684,0.55757451,117860.0,117850.0,1.20324008]
[1752377993983,0.55757451,117860.0,117850.0,0.84244008]
[1752377994181,0.55757451,117860.0,117850.0,0.40547547]
[1752377994378,0.1696641,117840.0,117830.0,0.361]
[1752377994582,0.82814822,117840.0,117830.0,0.3608]
[1752377994788,1.13779331,117840.0,117830.0,0.3608]
[1752377995087,0.2749685,117830.0,117820.0,0.95684551]
[1752377995289,0.56084771,117830.0,117820.0,0.95684551]
[1752377995989,0.56084771,117830.0,117820.0,0.6895306]
[1752377996290,0.56084771,117830.0,117820.0,0.95684551]
[1752377996780,0.56084771,117830.0,117820.0,0.87200021]
[1752377997295,0.56084771,117830.0,117820.0,0.6066853]
[1752378000185,0.2935328,117830.0,117820.0,0.6066853]
[1752378000489,0.56084771,117830.0,117820.0,0.6066853]
[1752378000883,0.56084771,117830.0,117820.0,0.87400021]
[1752378001091,1.13792771,117830.0,117820.0,0.89416021]
[1752378002197,0.8706128,117830.0,117820.0,0.89616021]
[1752378002490,1.13792771,117830.0,117820.0,0.89616021]
[1752378009695,1.13792771,117830.0,117820.0,0.87600021]
[1752378012094,0.8390228,117830.0,117820.0,0.89816021]
[1752378012297,0.8711828,117830.0,117820.0,0.89816021]
[1752378015098,1.13849771,117830.0,117820.0,0.89816021]
[1752378016099,1.13849771,117830.0,117820.0,0.89616021]
[1752378016500,1.13849771,117830.0,117820.0,0.87600021]
[1752378017596,1.13849771,117830.0,117820.0,0.6086853]
[1752378017791,1.13849771,117830.0,117820.0,0.87600021]
[1752378024606,1.19958646,117830.0,117820.0,0.87600021]
[1752378025001,1.19958646,117830.0,117820.0,0.6086853]
[1752378029109,0.93227155,117830.0,117820.0,0.6086853]
[1752378029312,1.19958646,117830.0,117820.0,0.87600021]
[1752378029908,1.19958646,117830.0,117820.0,0.6086853]
[1752378030210,1.19958646,117830.0,117820.0,0.87600021]
[1752378038420,1.13849771,117830.0,117820.0,0.87600021]
[1752378046127,0.56141771,117830.0,117820.0,0.87600021]
[1752378046320,1.13849771,117830.0,117820.0,0.87600021]
[1752378049522,1.13849771,117830.0,117820.0,0.6086853]
[1752378049818,1.13849771,117830.0,117820.0,0.87600021]
[1752378050021,0.2941028,117830.0,117820.0,0.89616021]
[1752378050227,0.90011155,117830.0,117820.0,1.25896021]
[1752378050524,0.6201943,117830.0,117820.0,1.25896021]
[1752378051117,0.0431143,117830.0,117820.0,2.41316021]
[1752378051323,0.0185643,117830.0,117820.0,2.41316021]
[1752378055525,0.10636875,117860.0,117850.0,0.2398697]
[1752378055730,0.06108875,117870.0,117860.0,0.2196953]
[1752378055932,0.10636875,117870.0,117860.0,0.86797021]
[1752378056126,0.13731875,117870.0,117860.0,0.86797021]
[1752378056525,0.13731875,117870.0,117860.0,0.86697021]
[1752378056926,0.13731875,117870.0,117860.0,0.93396629]
[1752378057228,0.07623,117870.0,117860.0,0.93396629]
[1752378057426,0.07723,117870.0,117860.0,0.93396629]
[1752378057725,0.10098,117870.0,117860.0,0.93396629]
[1752378057923,0.09998,117870.0,117860.0,0.93396629]
[1752378058931,0.09998,117870.0,117860.0,0.90421272]
[1752378059135,0.2696009,117870.0,117860.0,0.90421272]
[1752378059432,0.09998,117870.0,117860.0,0.90421272]
[1752378062337,0.09998,117870.0,117860.0,0.66665138]
[1752378062538,0.09998,117870.0,117860.0,0.90421272]
[1752378066538,0.2696009,117870.0,117860.0,0.90421272]
[1752378067436,0.28822548,117870.0,117860.0,0.90421272]
[1752378070234,0.28822548,117870.0,117860.0,0.66665138]
[1752378070539,0.28822548,117870.0,117860.0,0.90421272]
[1752378070839,0.28822548,117870.0,117860.0,1.80089138]
[1752378072242,0.25727548,117870.0,117860.0,0.64649138]
[1752378072443,0.28842548,117870.0,117860.0,0.66665138]
[1752378073136,0.28842548,117870.0,117860.0,0.90421272]
[1752378076135,0.28843292,117870.0,117860.0,0.90421272]
[1752378082844,0.28843292,117870.0,117860.0,0.9339386]
[1752378083143,0.28847515,117870.0,117860.0,0.9339386]
[1752378085046,0.28847515,117870.0,117860.0,0.66665138]
[1752378085245,0.55576237,117870.0,117860.0,0.9339386]
[1752378089048,0.61685112,117870.0,117860.0,0.9339386]
[1752378093446,0.61685112,117870.0,117860.0,0.5731386]
[1752378093750,0.61685112,117870.0,117860.0,0.9339386]
[1752378094648,0.55576237,117870.0,117860.0,0.9339386]
[1752378094851,0.55576237,117870.0,117860.0,0.66665138]
[1752378095149,0.55576237,117870.0,117860.0,0.9339386]
[1752378099254,0.12017425,117870.0,117860.0,1.20122582]
[1752378099553,0.69701425,117870.0,117860.0,0.9339386]
[1752378099949,0.08790425,117870.0,117860.0,0.9339386]
[1752378100150,0.01887425,117870.0,117860.0,1.20122582]
[1752378102456,0.06472425,117870.0,117860.0,1.20122582]
[1752378102855,0.06472425,117870.0,117860.0,0.9339386]
[1752378103658,0.06472425,117870.0,117860.0,0.66665138]
[1752378103853,0.29105515,117870.0,117860.0,0.9339386]
[1752378108856,0.29105515,117870.0,117860.0,1.2947386]
[1752378115364,0.12143425,117870.0,117860.0,1.2947386]
[1752378117861,0.29105515,117870.0,117860.0,1.2947386]
[1752378118267,0.12143425,117870.0,117860.0,1.2947386]
[1752378119868,0.29105515,117870.0,117860.0,1.2947386]
[1752378120170,0.12143425,117870.0,117860.0,1.2947386]
[1752378124470,0.08916425,117870.0,117860.0,1.2947386]
[1752378126974,0.08916425,117870.0,117860.0,1.2957386]
[1752378130374,0.08916425,117870.0,117860.0,1.02845138]
[1752378130672,0.08916425,117870.0,117860.0,1.2957386]
[1752378131072,0.08916425,117870.0,117860.0,1.2967386]
[1752378135574,0.08916425,117870.0,117860.0,1.02945138]
[1752378135774,0.08916425,117870.0,117860.0,1.2967386]
[1752378136177,0.25878515,117870.0,117860.0,1.2967386]
[1752378136372,0.08916425,117870.0,117860.0,1.2967386]
[1752378137273,0.06472425,117870.0,117860.0,1.2967386]
[1752378138075,0.08725425,117870.0,117860.0,1.2967386]
[1752378144490,0.08725425,117870.0,117860.0,0.5751386]
[1752378144695,0.08725425,117870.0,117860.0,1.2967386]
[1752378145396,0.08725425,117870.0,117860.0,2.4502186]
[1752378158707,0.08725425,117870.0,117860.0,2.18293138]
[1752378158903,0.11738425,117870.0,117860.0,2.4502186]
[1752378166109,1.24126759,117870.0,117860.0,0.3628]
[1752378166310,1.66315634,117870.0,117860.0,0.002]
[1752378166511,1.60206759,117870.0,117860.0,0.002]
[1752378166708,0.89794052,117870.0,117860.0,0.5324353]
[1752378166919,1.2073733,117870.0,117860.0,0.5640953]
[1752378167111,1.13101237,117870.0,117860.0,0.5640953]
[1752378167308,0.68353329,117870.0,117860.0,0.03366]
[1752378167504,0.68353329,117870.0,117860.0,0.2032953]
[1752378167705,1.26025329,117870.0,117860.0,0.2032953]
[1752378168514,1.52754051,117870.0,117860.0,0.2032953]
[1752378169412,0.95082051,117870.0,117860.0,0.2032953]
[1752378169715,1.26025329,117870.0,117860.0,0.2032953]
[1752378170916,1.27555766,117870.0,117860.0,0.15746148]
[1752378173714,0.69883766,117870.0,117860.0,0.15746148]
[1752378173911,0.69883766,117870.0,117860.0,0.51826148]
[1752378174117,1.27563766,117870.0,117860.0,0.51826148]
[1752378174321,1.19927673,117870.0,117860.0,0.51826148]
[1752378174521,0.62247673,117870.0,117860.0,0.51826148]
[1752378174716,1.26027697,117870.0,117860.0,0.51826148]
[1752378175918,1.26023697,117870.0,117860.0,0.51826148]
[1752378177223,0.68343697,117870.0,117860.0,0.51826148]
[1752378177424,1.26023697,117870.0,117860.0,0.51826148]
[1752378178724,0.68343697,117870.0,117860.0,0.51826148]
[1752378178924,1.26027697,117870.0,117860.0,0.51826148]
[1752378179522,0.68343697,117870.0,117860.0,0.51826148]
[1752378179723,1.26027697,117870.0,117860.0,0.51826148]
[1752378179923,1.52756419,117870.0,117860.0,0.51826148]
[1752378180124,0.99298975,117870.0,117860.0,0.15746148]
[1752378180319,1.52756419,117870.0,117860.0,0.15746148]
[1752378182926,0.95072419,117870.0,117860.0,0.15746148]
[1752378183225,1.52756419,117870.0,117860.0,0.15746148]
[1752378185729,0.1997653,117860.0,117850.0,0.94355892]
[1752378185930,0.55783677,117860.0,117850.0,0.94355892]
[1752378187020,0.55783677,117860.0,117850.0,0.94755892]
[1752378189830,0.55783677,117860.0,117850.0,0.5344497]
[1752378190037,0.91863677,117860.0,117850.0,0.1736497]
[1752378192037,0.65134955,117860.0,117850.0,0.1736497]
[1752378192237,0.91863677,117860.0,117850.0,0.1736497]
[1752378196139,0.55783677,117860.0,117850.0,0.1736497]
[1752378198242,0.29054955,117860.0,117850.0,0.1736497]
[1752378198444,0.55783677,117860.0,117850.0,0.1736497]
[1752378199142,0.61879701,117860.0,117850.0,0.1736497]
[1752378202445,0.61879701,117860.0,117850.0,0.44093692]
[1752378202645,1.19559701,117860.0,117850.0,0.44093692]
[1752378208953,1.19559701,117860.0,117850.0,0.1736497]
[1752378209154,1.13463677,117860.0,117850.0,0.44093692]
[1752378211057,1.13463677,117860.0,117850.0,0.1736497]
[1752378211258,1.13463677,117860.0,117850.0,0.44093692]
[1752378217961,1.19559701,117860.0,117850.0,0.44093692]
[1752378218963,0.33283554,117860.0,117850.0,0.45879421]
[1752378219163,1.19534381,117860.0,117850.0,0.81959421]
[1752378219662,1.13438357,117860.0,117850.0,0.81959421]
[1752378220358,0.86709635,117860.0,117850.0,0.81959421]
[1752378220660,1.13438357,117860.0,117850.0,0.81959421]
[1752378225963,1.11592252,117860.0,117850.0,0.81959421]
[1752378226163,1.13438389,117860.0,117850.0,0.81959421]
[1752378227164,0.86709667,117860.0,117850.0,0.81959421]
[1752378227354,1.13438389,117860.0,117850.0,0.81959421]
[1752378227961,1.19534413,117860.0,117850.0,0.81959421]
[1752378235364,0.92805691,117860.0,117850.0,0.81959421]
[1752378235571,1.19534413,117860.0,117850.0,0.81959421]
[1752378237372,1.19534413,117860.0,117850.0,0.55230699]
[1752378237672,1.19534413,117860.0,117850.0,0.81959421]
[1752378239272,1.13438389,117860.0,117850.0,0.81959421]
[1752378240170,0.86709667,117860.0,117850.0,0.81959421]
[1752378240365,1.13438389,117860.0,117850.0,0.81959421]
[1752378245273,0.55762389,117860.0,117850.0,0.81959421]
[1752378245474,1.13438389,117860.0,117850.0,0.81959421]
[1752378248277,1.13438389,117860.0,117850.0,0.55230699]
[1752378248478,1.13438389,117860.0,117850.0,0.81959421]
[1752378250176,1.13438389,117860.0,117850.0,0.45879421]
[1752378250379,1.13438389,117860.0,117850.0,0.81959421]
[1752378251182,1.13438389,117860.0,117850.0,0.55230699]
[1752378251481,1.13438389,117860.0,117850.0,0.81959421]
[1752378253582,1.13438389,117860.0,117850.0,0.55230699]
[1752378253783,1.13438389,117860.0,117850.0,0.81959421]
[1752378254884,1.19534413,117860.0,117850.0,0.81959421]
[1752378260200,1.19534413,117860.0,117850.0,0.55230699]
[1752378260393,1.19534413,117860.0,117850.0,0.81959421]
[1752378263101,1.19534413,117860.0,117850.0,0.55230699]
[1752378263401,1.19534413,117860.0,117850.0,0.81959421]
[1752378266405,1.19527589,117860.0,117850.0,0.55230699]
[1752378267204,0.61851589,117860.0,117850.0,0.55230699]
[1752378267504,1.19523589,117860.0,117850.0,0.55230699]
[1752378270909,1.13427565,117860.0,117850.0,0.55230699]
[1752378272706,1.13427565,117860.0,117850.0,0.81959421]
[1752378275614,1.19523589,117860.0,117850.0,0.81959421]
[1752378278212,1.19523589,117860.0,117850.0,0.55230699]
[1752378280320,1.55603589,117860.0,117850.0,0.02185729]
[1752378280515,0.2004097,117850.0,117840.0,0.36249714]
[1752378280720,0.2706885,117830.0,117820.0,0.1698929]
[1752378280921,1.13324885,117830.0,117820.0,0.1696929]
[1752378281411,1.19437337,117830.0,117820.0,0.1696929]
[1752378281812,1.19437337,117830.0,117820.0,0.1726929]
[1752378282422,1.13324885,117830.0,117820.0,0.1726929]
[1752378282816,0.55656885,117830.0,117820.0,0.1726929]
[1752378283016,1.13324885,117830.0,117820.0,0.1726929]
[1752378283418,1.13324885,117830.0,117820.0,0.1746929]
[1752378298035,1.13324885,117830.0,117820.0,0.005]
[1752378299334,1.13324885,117830.0,117820.0,0.003]
[1752378299529,0.1696929,117820.0,117810.0,0.62286004]
[1752378299839,0.55658325,117820.0,117810.0,0.62286004]
[1752378300839,0.55658325,117820.0,117810.0,0.62386004]
[1752378301237,0.55658325,117820.0,117810.0,0.62486004]
[1752378301636,0.55658325,117820.0,117810.0,0.89214726]
[1752378301938,0.55658325,117820.0,117810.0,0.62486004]
[1752378303335,0.55658325,117820.0,117810.0,0.89214726]
[1752378303937,0.55658325,117820.0,117810.0,0.62486004]
[1752378305139,0.55658325,117820.0,117810.0,0.89214726]
[1752378305539,0.53819012,117820.0,117810.0,0.89214726]
[1752378305739,0.55694691,117820.0,117810.0,0.89214726]
[1752378306539,0.55694691,117820.0,117810.0,0.53134726]
[1752378306740,0.55694691,117820.0,117810.0,0.89214726]
[1752378310141,0.55694691,117820.0,117810.0,0.62486004]
[1752378312243,0.55694691,117820.0,117810.0,0.89214726]
[1752378313343,0.55694691,117820.0,117810.0,0.62486004]
[1752378315547,0.55694691,117820.0,117810.0,0.89214726]
[1752378317949,0.55694691,117820.0,117810.0,0.62486004]
[1752378318150,0.55694691,117820.0,117810.0,0.89214726]
[1752378320551,0.55694691,117820.0,117810.0,0.62486004]
[1752378320849,0.55694691,117820.0,117810.0,0.89214726]
[1752378321251,0.55694691,117820.0,117810.0,0.62486004]
[1752378323255,0.55694691,117820.0,117810.0,0.54000704]
[1752378323452,0.55694691,117820.0,117810.0,0.37030784]
[1752378323652,0.91774691,117820.0,117810.0,0.002]